fUST/lending_fUST_20250603
["ID","MTS","AMOUNT","RATE_DAILY","PERIOD"]
[363965073,1748947860514,-1071.18,0.00022191,2]
[363965074,1748947860530,-645.4,0.00022191,2]
[363965075,1748947860544,-682.03,0.00022191,2]
[363965076,1748947860559,-470.49,0.00022191,2]
[363965077,1748947860573,-957.6,0.00022191,2]
[363965078,1748947860587,-1228.71,0.00022191,2]
[363965079,1748947860601,-3902.492931,0.00022191,2]
[363965080,1748947860616,-3902.492931,0.00022191,2]
[363965081,1748947860632,-556.38,0.00022191,2]
[363965082,1748947860646,-1121.18,0.00022191,2]
[363965083,1748947860661,-917.81,0.00022203,7]
[363965084,1748947860675,-364.5107659,0.00022274,2]
[363965085,1748947860689,-364.5107659,0.00022274,2]
[363965086,1748947860704,-364.5107659,0.00022274,2]
[363965087,1748947860718,-364.5107659,0.00022274,2]
[363965088,1748947860732,-364.5107659,0.00022274,2]
[363965089,1748947860746,-364.5107659,0.00022274,2]
[363965090,1748947860760,-364.5107659,0.00022274,2]
[363965091,1748947860775,-364.5107659,0.00022274,2]
[363965092,1748947860896,-225.1054,0.00022274,2]
[363965093,1748947860912,-26162.8175875,0.00022278,3]
[363965094,1748947860921,-22312.17223884,0.00022278,2]
[363965095,1748947860933,-308.670091,0.00022278,7]
[363965096,1748947860943,-308.670091,0.00022278,7]
[363965097,1748947860952,-133578.67752832,0.0002228,2]
[363965098,1748947860963,-9089.59,0.0002228,10]
[363965099,1748947860973,-117749.33545419,0.0002229,2]
[363965100,1748947860983,-252.976923,0.0002229,7]
[363965101,1748947860992,-252.976923,0.0002229,7]
[363965102,1748947861002,-151.0,0.0002229,7]
[363965103,1748947861013,-783.919274,0.0002229,7]
[363965104,1748947861023,-783.919274,0.0002229,7]
[363965105,1748947861032,-552.899013,0.0002229,7]
[363965106,1748947861042,-552.899013,0.0002229,7]
[363965107,1748947861052,-166.285182,0.0002229,7]
[363965108,1748947861062,-166.285182,0.0002229,7]
[363965109,1748947861072,-798.7271,0.0002229,7]
[363965110,1748947861082,-798.7271,0.0002229,7]
[363965111,1748947861092,-917.81,0.00022303,3]
[363965112,1748947861102,-151.0,0.0002237,7]
[363965113,1748947861112,-152.476461,0.0002237,7]
[363965114,1748947861122,-2200.0,0.00022379,2]
[363965115,1748947861132,-658.29,0.000224,7]
[363965116,1748947861142,-917.81,0.00022403,2]
[363965117,1748947861152,-2179.85538415,0.00022412,7]
[363965118,1748947861164,-2379.76293757,0.00022417,7]
[363965119,1748947861173,-500.0,0.00022465,2]
[363965120,1748947861184,-484.01,0.00022465,2]
[363965121,1748947861194,-360.0,0.00022465,2]
[363965122,1748947861204,-455.41,0.00022465,2]
[363965123,1748947861214,-540.16,0.00022465,2]
[363965124,1748947861223,-532.1,0.00022465,2]
[363965125,1748947861231,-463.77,0.00022465,2]
[363965126,1748947861240,-455.96,0.00022465,2]
[363965127,1748947861250,-2077.18,0.00022465,2]
[363965128,1748947861260,-151.0,0.00022465,7]
[363965129,1748947861270,-472.3,0.00022465,2]
[363965130,1748947861280,-152.881142,0.00022465,7]
[363965131,1748947861290,-15582.25,0.00022465,2]
[363965132,1748947861300,-1447.69,0.00022465,2]
[363965133,1748947861311,-440.0,0.00022465,2]
[363965134,1748947861320,-1785.19,0.00022465,2]
[363965135,1748947861331,-490.09,0.00022465,2]
[363965136,1748947861341,-619.81,0.00022465,2]
[363965137,1748947861351,-2648.57,0.00022465,2]
[363965138,1748947861361,-595.28,0.00022465,2]
[363965139,1748947861371,-2410.62,0.00022465,2]
[363965140,1748947861381,-4321.72,0.00022465,2]
[363965141,1748947861391,-450.66,0.00022465,2]
[363965142,1748947861401,-897.07,0.00022465,2]
[363965143,1748947861412,-151.0,0.00022465,7]
[363965144,1748947861423,-2663.09,0.00022465,2]
[363965145,1748947861432,-852.36,0.00022465,2]
[363965146,1748947861442,-151.0,0.00022465,7]
[363965147,1748947861453,-1482.71,0.00022465,2]
[363965148,1748947861462,-636.06,0.00022465,2]
[363965149,1748947861472,-151.0,0.00022465,7]
[363965150,1748947861482,-2135.98,0.00022465,2]
[363965151,1748947861492,-905.57,0.00022465,2]
[363965152,1748947861502,-808.85,0.00022465,2]
[363965153,1748947861512,-645.4,0.00022465,2]
[363965154,1748947861522,-1071.18,0.00022465,2]
[363965155,1748947861532,-151.0,0.00022465,7]
[363965156,1748947861542,-682.03,0.00022465,2]
[363965157,1748947861551,-470.49,0.00022465,2]
[363965158,1748947861561,-957.6,0.00022465,2]
[363965159,1748947861571,-1228.71,0.00022465,2]
[363965160,1748947861580,-556.38,0.00022465,2]
[363965161,1748947861591,-1121.18,0.00022465,2]
[363965162,1748947861601,-6317.93736942,0.00022477,2]
[363965163,1748947861611,-917.81,0.00022503,3]
[363965164,1748947861620,-153.0,0.00022521,2]
[363965165,1748947861629,-153.0,0.00022521,2]
[363965166,1748947861639,-153.0,0.00022521,2]
[363965167,1748947861649,-153.0,0.00022521,2]
[363965168,1748947861659,-1435.985759,0.0002254,3]
[363965169,1748947861669,-2644.34609733,0.00022558,2]
[363965170,1748947861678,-212.86879254,0.000226,3]
[363965171,1748947861689,-230.929851,0.00022603,2]
[363965172,1748947861698,-917.81,0.00022603,3]
[363965173,1748947861708,-1742.0,0.00022667,3]
[363965174,1748947861719,-1742.0,0.00022667,3]
[363965175,1748947861728,-1742.0,0.00022667,3]
[363965176,1748947861738,-1188.62037801,0.00022667,3]
[363965177,1748947861747,-9614.97896818,0.0002269,2]
[363965178,1748947861758,-2379.76293757,0.00022693,7]
[363965179,1748947861768,-151.0,0.000227,9]
[363965180,1748947861777,-52509.83,0.000227,2]
[363965181,1748947861787,-151.0,0.000227,7]
[363965182,1748947861797,-443.164829,0.000227,7]
[363965183,1748947861807,-443.164829,0.000227,7]
[363965184,1748947861816,-308.670091,0.000227,7]
[363965185,1748947861826,-308.670091,0.000227,7]
[363965186,1748947861835,-3902.492931,0.000227,2]
[363965187,1748947861845,-3902.492931,0.000227,2]
[363965188,1748947861856,-917.81,0.00022703,6]
[363965189,1748947861866,-5000.0,0.00022736,2]
[363965190,1748947861875,-5000.0,0.00022736,2]
[363965191,1748947861886,-5000.0,0.00022736,2]
[363965192,1748947861896,-5000.0,0.00022736,2]
[363965193,1748947861906,-5000.0,0.00022736,2]
[363965194,1748947861916,-5000.0,0.00022736,2]
[363965195,1748947861926,-5000.0,0.00022736,2]
[363965196,1748947861944,-204.259132,0.00022739,7]
[363965197,1748947861955,-204.259132,0.00022739,7]
[363965198,1748947861965,-199.27845559,0.00022739,7]
[363965199,1748947861975,-1329.551322,0.00022739,7]
[363965200,1748947861985,-1329.551322,0.00022739,7]
[363965201,1748947861994,-484.07194615,0.00022739,2]
[363965202,1748947862005,-455.57,0.00022739,2]
[363965203,1748947862016,-540.22431858,0.00022739,2]
[363965204,1748947862029,-555.093069,0.00022739,7]
[363965205,1748947862039,-555.093069,0.00022739,7]
[363965206,1748947862049,-532.10936774,0.00022739,2]
[363965207,1748947862059,-463.85521261,0.00022739,2]
[363965208,1748947862069,-456.105266,0.00022739,2]
[363965209,1748947862080,-2077.32088384,0.00022739,2]
[363965210,1748947862090,-472.32023642,0.00022739,2]
[363965211,1748947862101,-15582.39291359,0.00022739,2]
[363965212,1748947862112,-1447.79252714,0.00022739,2]
[363965213,1748947862123,-327.66392787,0.00022739,2]
[363965214,1748947862132,-1785.22472302,0.00022739,2]
[363965215,1748947862142,-490.32206632,0.00022739,2]
[363965216,1748947862151,-619.92577497,0.00022739,2]
[363965217,1748947862162,-2648.58942531,0.00022739,2]
[363965218,1748947862172,-595.44,0.00022739,2]
[363965219,1748947862182,-2410.63,0.00022739,2]
[363965220,1748947862192,-4321.81999998,0.00022739,2]
[363965221,1748947862212,-450.87155039,0.00022739,2]
[363965222,1748947862224,-897.10629122,0.00022739,2]
[363965223,1748947862235,-2663.24695606,0.00022739,2]
[363965224,1748947862245,-852.50432384,0.00022739,2]
[363965225,1748947862257,-1482.73288083,0.00022739,2]
[363965226,1748947862267,-636.26,0.00022739,2]
[363965227,1748947862278,-2136.13905433,0.00022739,2]
[363965228,1748947862289,-905.78680322,0.00022739,2]
[363965229,1748947862299,-808.89728188,0.00022739,2]
[363965230,1748947862310,-645.5,0.00022739,2]
[363965231,1748947862320,-1071.24973813,0.00022739,2]
[363965232,1748947862331,-682.11563373,0.00022739,2]
[363965233,1748947862342,-470.54,0.00022739,2]
[363965234,1748947862352,-957.65616375,0.00022739,2]
[363965235,1748947862363,-1228.9134477,0.00022739,2]
[363965236,1748947862374,-556.47971905,0.00022739,2]
[363965237,1748947862385,-1121.35323361,0.00022739,2]
[363965238,1748947862394,-20106.70657462,0.0002277,2]
[363965239,1748947862717,-12246.11272655,0.0002277,2]
[363965240,1748947862728,-15156.0,0.000228,2]
[363965241,1748947862738,-151.0,0.000228,7]
[363965242,1748947862749,-151.0,0.000228,7]
[363965243,1748947862758,-151.0,0.000228,7]
[363965244,1748947862768,-151.512162,0.000228,7]
[363965245,1748947862778,-153.681365,0.000228,7]
[363965246,1748947862789,-917.81,0.00022803,2]
[363965247,1748947862800,-258.91856938,0.00022822,2]
[363965248,1748947862809,-800.0,0.00022838,2]
[363965249,1748947862819,-800.0,0.00022877,2]
[363965250,1748947862829,-6317.93736942,0.00022883,2]
[363965251,1748947862839,-151.0,0.00022888,26]
[363965252,1748947862850,-800.0,0.00022895,2]
[363965253,1748947862860,-917.81,0.00022903,2]
[363965254,1748947862871,-159.281008,0.00022907,6]
[363965255,1748947862882,-800.0,0.00022914,2]
[363965256,1748947862894,-800.0,0.00022926,2]
[363965257,1748947862903,-159.281008,0.0002294,3]
[363965258,1748947862914,-2379.76293757,0.00022969,8]
[363965259,1748947862923,-209.487149,0.0002299,7]
[363965260,1748947862936,-209.487149,0.0002299,7]
[363965261,1748947862945,-181.05793227,0.00022992,2]
[363965262,1748947862954,-151.0,0.00023,7]
[363965263,1748947862964,-151.0,0.00023,7]
[363965264,1748947862975,-299.161862,0.00023,7]
[363965265,1748947862985,-299.161862,0.00023,7]
[363965266,1748947862995,-151.0,0.00023,7]
[363965267,1748947863006,-151.0,0.00023,7]
[363965268,1748947863016,-151.0,0.00023,7]
[363965269,1748947863026,-151.0,0.00023,7]
[363965270,1748947863036,-157.303722,0.00023,7]
[363965271,1748947863046,-152.836905,0.00023,7]
[363965272,1748947863056,-250.0,0.00023,2]
[363965273,1748947863066,-250.0,0.00023,2]
[363965274,1748947863076,-209.487149,0.00023,7]
[363965275,1748947863086,-209.487149,0.00023,7]
[363965276,1748947863097,-2805.0,0.00023,2]
[363965277,1748947863107,-2805.0,0.00023,2]
[363965278,1748947863117,-2805.0,0.00023,2]
[363965279,1748947863127,-2805.0,0.00023,2]
[363965280,1748947863137,-2805.0,0.00023,2]
[363965281,1748947863147,-2805.0,0.00023,2]
[363965282,1748947863157,-2805.0,0.00023,2]
[363965283,1748947863166,-2805.0,0.00023,2]
[363965284,1748947863176,-200.0,0.00023,20]
[363965285,1748947863186,-200.0,0.00023,20]
[363965286,1748947863196,-200.0,0.00023,20]
[363965287,1748947863205,-200.0,0.00023,20]
[363965288,1748947863215,-200.0,0.00023,20]
[363965289,1748947863224,-200.0,0.00023,20]
[363965290,1748947863234,-200.0,0.00023,20]
[363965291,1748947863244,-166.0,0.00023,20]
[363965292,1748947863254,-250.0,0.00023,2]
[363965293,1748947863264,-250.0,0.00023,2]
[363965294,1748947863275,-250.0,0.00023,2]
[363965295,1748947863285,-250.0,0.00023,2]
[363965296,1748947863296,-250.0,0.00023,2]
[363965297,1748947863306,-250.0,0.00023,2]
[363965298,1748947863316,-250.0,0.00023,2]
[363965299,1748947863326,-250.0,0.00023,2]
[363965300,1748947863336,-250.0,0.00023,2]
[363965301,1748947863346,-250.0,0.00023,2]
[363965302,1748947863358,-250.0,0.00023,2]
[363965303,1748947863368,-250.0,0.00023,2]
[363965304,1748947863378,-250.0,0.00023,2]
[363965305,1748947863388,-250.0,0.00023,2]
[363965306,1748947863399,-250.0,0.00023,2]
[363965307,1748947863409,-168.43192,0.00023,7]
[363965308,1748947863419,-168.43192,0.00023,7]
[363965309,1748947863429,-160.0,0.00023,3]
[363965310,1748947863439,-9613.66699951,0.00023,7]
[363965311,1748947863450,-18013.12052386,0.00023,2]
[363965312,1748947863460,-51617.33356207,0.00023,2]
[363965313,1748947863470,-31200.05621919,0.00023,2]
[363965314,1748947863481,-2000.0,0.00023,2]
[363965315,1748947863492,-151.0,0.00023,2]
[363965316,1748947863503,-158.914182,0.00023,7]
[363965317,1748947863514,-158.914182,0.00023,7]
[363965318,1748947863525,-500.0,0.00023,2]
[363965319,1748947863536,-500.0,0.00023,2]
[363965320,1748947863546,-203.55,0.00023,7]
[363965321,1748947863557,-261.910345,0.00023,7]
[363965322,1748947863567,-203.55,0.00023,7]
[363965323,1748947863577,-261.910345,0.00023,7]
[363965324,1748947863587,-151.0,0.00023,7]
[363965325,1748947863598,-151.0,0.00023,7]
[363965326,1748947863607,-783.919274,0.00023,7]
[363965327,1748947863617,-783.919274,0.00023,7]
[363965328,1748947863627,-443.164829,0.00023,7]
[363965329,1748947863638,-443.164829,0.00023,7]
[363965330,1748947863648,-552.899013,0.00023,7]
[363965331,1748947863658,-552.899013,0.00023,7]
[363965332,1748947863668,-166.285182,0.00023,7]
[363965333,1748947863678,-166.285182,0.00023,7]
[363965334,1748947863687,-1383.317652,0.00023,7]
[363965335,1748947863697,-1000.0,0.00023,2]
[363965336,1748947863707,-1383.317652,0.00023,7]
[363965337,1748947863717,-250.0,0.00023,30]
[363965338,1748947863727,-160.0,0.00023,3]
[363965339,1748947863738,-160.0,0.00023,3]
[363965340,1748947863749,-151.0,0.00023,7]
[363965341,1748947863759,-229.42821335,0.00023,3]
[363965342,1748947863770,-151.0,0.00023,7]
[363965343,1748947863781,-151.0,0.00023,7]
[363965344,1748947863792,-247.3756,0.00023,2]
[363965345,1748947863802,-798.7271,0.00023,7]
[363965346,1748947863813,-160.0,0.00023,3]
[363965347,1748947863823,-798.7271,0.00023,7]
[363965348,1748947863833,-151.0,0.00023,7]
[363965349,1748947863845,-308.670091,0.00023,7]
[363965350,1748947863854,-159.281008,0.00023,7]
[363965351,1748947863865,-308.670091,0.00023,7]
[363965352,1748947863875,-200.0,0.00023,2]
[363965353,1748947863885,-160.0,0.00023,3]
[363965354,1748947863895,-160.0,0.00023,3]
[363965355,1748947863904,-3902.492931,0.00023,2]
[363965356,1748947863914,-3902.492931,0.00023,2]
[363965357,1748947863925,-175.0,0.00023,7]
[363965358,1748947863938,-423.63107087,0.00023,3]
[363965359,1748947863949,-917.81,0.00023003,2]
[363965360,1748947863959,-500.0,0.00023013,2]
[363965361,1748947863969,-151.0,0.00023038,28]
[363965362,1748947863979,-159.79694846,0.00023041,2]
[363965363,1748947863989,-252.976923,0.00023067,7]
[363965364,1748947864097,-252.976923,0.00023067,7]
[363965365,1748947864107,-151.0,0.00023067,7]
[363965366,1748947864117,-85262.66,0.000231,7]
[363965367,1748947864126,-3762.34,0.000231,7]
[363965368,1748947864136,-151.0,0.000231,7]
[363965369,1748947864147,-555.093069,0.000231,7]
[363965370,1748947864157,-555.093069,0.000231,7]
[363965371,1748947864167,-145192.08,0.000231,8]
[363965372,1748947864176,-303.95,0.000231,8]
[363965373,1748947864186,-223.0315306,0.00023103,2]
[363965374,1748947864197,-917.81,0.00023103,6]
[363965375,1748947864207,-163.11639637,0.00023187,29]
[363965376,1748947864218,-308.670091,0.00023203,7]
[363965377,1748947864228,-308.670091,0.00023203,7]
[363965378,1748947864238,-917.81,0.00023203,6]
[363965379,1748947864247,-159.79694846,0.00023233,2]
[363965380,1748947864257,-2379.76293757,0.00023245,8]
[363965381,1748947864267,-151.0,0.00023287,7]
[363965382,1748947864277,-151.0,0.00023287,7]
[363965383,1748947864286,-227.149888,0.00023287,7]
[363965384,1748947864296,-227.149888,0.00023287,7]
[363965385,1748947864306,-151.0,0.00023289,7]
[363965386,1748947864318,-204.259132,0.00023289,7]
[363965387,1748947864327,-204.259132,0.00023289,7]
[363965388,1748947864337,-1329.551322,0.00023289,7]
[363965389,1748947864347,-1329.551322,0.00023289,7]
[363965390,1748947864357,-6317.93736942,0.00023289,2]
[363965391,1748947864367,-217849.4346044,0.00023299,15]
[363965393,1748947864399,-628.45,0.00023299,15]
[363965394,1748947864534,-470.0,0.00016438,2]
[363965395,1748947864544,-1013.06,0.00018904,2]
[363965396,1748947864554,-1013.06,0.00019178,2]
[363965397,1748947864565,-1013.06,0.00019452,2]
[363965398,1748947864574,-1013.06,0.00019726,2]
[363965399,1748947864584,-1013.06,0.0002,2]
[363965400,1748947864594,-1013.06,0.00020273,2]
[363965401,1748947864604,-1013.06,0.00020547,2]
[363965402,1748947864614,-1013.06,0.00020821,2]
[363965403,1748947864624,-1013.06,0.00021095,2]
[363965404,1748947864634,-311.94511383,0.00021369,2]
[363965405,1748947864646,-701.11488617,0.00021369,2]
[363965406,1748947864657,-1013.06,0.00021643,2]
[363965407,1748947864666,-540.06,0.00021917,2]
[363965408,1748947864675,-1013.06,0.00021917,2]
[363965409,1748947864686,-540.06,0.00022191,2]
[363965410,1748947864695,-1013.06,0.00022191,2]
[363965411,1748947864704,-540.06,0.00022465,2]
[363965412,1748947864716,-121.90851971,0.00022465,2]
[363965413,1748947864728,-891.15148029,0.00022465,2]
[363965414,1748947864738,-540.2177401,0.00022739,2]
[363965415,1748947864749,-1013.16018483,0.00022739,2]
[363965416,1748947864759,-35369.98091132,0.00023299,15]
[363965417,1748947864770,-1255.25124958,0.00023299,15]
[363965418,1748947864782,-2134.50219641,0.00023299,15]
[363965419,1748947864794,-18228.35742009,0.00023299,15]
[363965420,1748947864805,-151.0,0.00023299,7]
[363965421,1748947864815,-151.0,0.00023299,7]
[363965422,1748947864824,-299.161862,0.00023299,7]
[363965423,1748947864834,-299.161862,0.00023299,7]
[363965424,1748947864844,-151.0,0.00023299,7]
[363965425,1748947864855,-151.0,0.00023299,7]
[363965426,1748947864865,-151.0,0.00023299,7]
[363965427,1748947864875,-151.0,0.00023299,7]
[363965428,1748947864885,-209.487149,0.00023299,7]
[363965429,1748947864895,-209.487149,0.00023299,7]
[363965430,1748947864905,-270.291833,0.00023299,7]
[363965431,1748947864915,-270.291833,0.00023299,7]
[363965432,1748947864926,-3850.752041,0.00023299,7]
[363965433,1748947864939,-3850.752041,0.00023299,7]
[363965434,1748947864949,-203.55,0.00023299,7]
[363965435,1748947864958,-261.910345,0.00023299,7]
[363965436,1748947864968,-203.55,0.00023299,7]
[363965437,1748947864980,-151.0,0.00023299,7]
[363965438,1748947864989,-261.910345,0.00023299,7]
[363965439,1748947864999,-151.0,0.00023299,7]
[363965440,1748947865011,-151.0,0.00023299,7]
[363965441,1748947865022,-783.919274,0.00023299,7]
[363965442,1748947865032,-783.919274,0.00023299,7]
[363965443,1748947865041,-443.164829,0.00023299,7]
[363965444,1748947865052,-443.164829,0.00023299,7]
[363965445,1748947865062,-555.093069,0.00023299,7]
[363965446,1748947865074,-555.093069,0.00023299,7]
[363965447,1748947865085,-552.899013,0.00023299,7]
[363965448,1748947865095,-552.899013,0.00023299,7]
[363965449,1748947865105,-166.285182,0.00023299,7]
[363965450,1748947865116,-166.285182,0.00023299,7]
[363965451,1748947865127,-1383.317652,0.00023299,7]
[363965452,1748947865137,-1383.317652,0.00023299,7]
[363965453,1748947865149,-151.0,0.00023299,7]
[363965454,1748947865160,-151.0,0.00023299,7]
[363965455,1748947865170,-151.0,0.00023299,7]
[363965456,1748947865180,-798.7271,0.00023299,7]
[363965457,1748947865192,-798.7271,0.00023299,7]
[363965458,1748947865202,-798.7271,0.00023299,7]
[363965459,1748947865212,-798.7271,0.00023299,7]
[363965460,1748947865222,-151.0,0.00023299,7]
[363965461,1748947865232,-308.670091,0.00023299,7]
[363965462,1748947865241,-308.670091,0.00023299,7]
[363965463,1748947865251,-3902.492931,0.00023299,2]
[363965464,1748947865262,-3902.492931,0.00023299,2]
[363965465,1748947865272,-500.0,0.000233,3]
[363965466,1748947865282,-500.0,0.000233,2]
[363965467,1748947865292,-500.0,0.000233,3]
[363965468,1748947865302,-552.03,0.000233,14]
[363965469,1748947865312,-1892.0337929,0.000233,15]
[363965470,1748947865322,-65168.86558365,0.000233,32]
[363965471,1748947865335,-180.16077,0.000233,7]
[363965472,1748947865344,-180.16077,0.000233,7]
[363965473,1748947865354,-168.43192,0.000233,7]
[363965474,1748947865363,-168.43192,0.000233,7]
[363965475,1748947865373,-151.0,0.000233,7]
[363965476,1748947865382,-204.259132,0.000233,7]
[363965477,1748947865392,-204.259132,0.000233,7]
[363965478,1748947865402,-227.149888,0.000233,7]
[363965479,1748947865412,-227.149888,0.000233,7]
[363965480,1748947865422,-252.976923,0.000233,7]
[363965481,1748947865502,-252.976923,0.000233,7]
[363965482,1748947865524,-151.0,0.000233,7]
[363965483,1748947865535,-158.914182,0.000233,7]
[363965484,1748947865545,-158.914182,0.000233,7]
[363965485,1748947865556,-1329.551322,0.000233,7]
[363965486,1748947865566,-1329.551322,0.000233,7]
[363965487,1748947865576,-917.81,0.00023303,7]
[363965488,1748947865587,-26361.38,0.00023325,2]
[363965489,1748947865596,-151.0,0.00023325,7]
[363965490,1748947865606,-378.098461,0.00023376,2]
[363965491,1748947865616,-2000.0,0.000234,2]
[363965492,1748947865627,-2000.0,0.000234,2]
[363965493,1748947865637,-658.29,0.000234,7]
[363965494,1748947865647,-917.81,0.00023403,5]
[363965495,1748947865657,-159.79694846,0.00023425,2]
[363965496,1748947865667,-2000.0,0.000235,2]
[363965497,1748947865678,-68728.71168382,0.000235,7]
[363965498,1748947865687,-1816.64169451,0.000235,2]
[363965499,1748947865697,-33894.25241504,0.000235,2]
[363965500,1748947865708,-151.0,0.000235,7]
[363965501,1748947865718,-151.0,0.000235,7]
[363965502,1748947865728,-151.0,0.000235,7]
[363965503,1748947865738,-720.791154,0.000235,7]
[363965504,1748947865747,-720.791154,0.000235,7]
[363965505,1748947865758,-3850.752041,0.000235,7]
[363965506,1748947865767,-3850.752041,0.000235,7]
[363965507,1748947865777,-151.0,0.000235,7]
[363965508,1748947865786,-783.919274,0.000235,7]
[363965509,1748947865795,-783.919274,0.000235,7]
[363965510,1748947865805,-443.164829,0.000235,7]
[363965511,1748947865814,-443.164829,0.000235,7]
[363965512,1748947865824,-552.899013,0.000235,7]
[363965513,1748947865835,-552.899013,0.000235,7]
[363965514,1748947865844,-166.285182,0.000235,7]
[363965515,1748947865854,-166.285182,0.000235,7]
[363965516,1748947865865,-917.81,0.00023503,4]
[363965517,1748947865874,-2379.76293757,0.00023521,9]
[363965518,1748947865884,-500.0,0.00023561,2]
[363965519,1748947865894,-270.291833,0.00023561,7]
[363965520,1748947865904,-270.291833,0.00023561,7]
[363965521,1748947865915,-175.655,0.00023571,2]
[363965522,1748947865925,-437.43877595,0.0002358,2]
[363965523,1748947865936,-52509.83,0.000236,2]
[363965524,1748947865946,-203.55,0.000236,7]
[363965525,1748947865955,-261.910345,0.000236,7]
[363965526,1748947865965,-203.55,0.000236,7]
[363965527,1748947865975,-151.0,0.000236,7]
[363965528,1748947865984,-261.910345,0.000236,7]
[363965529,1748947865994,-151.0,0.000236,7]
[363965530,1748947866004,-151.0,0.000236,7]
[363965531,1748947866015,-555.093069,0.000236,7]
[363965532,1748947866025,-555.093069,0.000236,7]
[363965533,1748947866035,-1383.317652,0.000236,7]
[363965534,1748947866045,-1383.317652,0.000236,7]
[363965535,1748947866056,-151.0,0.000236,7]
[363965536,1748947866067,-151.0,0.000236,7]
[363965537,1748947866076,-151.0,0.000236,7]
[363965538,1748947866086,-798.7271,0.000236,7]
[363965539,1748947866095,-798.7271,0.000236,7]
[363965540,1748947866106,-151.0,0.000236,7]
[363965541,1748947866116,-308.670091,0.000236,7]
[363965542,1748947866126,-308.670091,0.000236,7]
[363965543,1748947866135,-3902.492931,0.000236,2]
[363965544,1748947866145,-3902.492931,0.000236,2]
[363965545,1748947866155,-917.81,0.00023603,7]
[363965546,1748947866166,-5000.0,0.00023623,2]
[363965547,1748947866176,-5000.0,0.00023623,2]
[363965548,1748947866186,-159.79694846,0.00023644,2]
[363965549,1748947866196,-5018.92474773,0.00023667,2]
[363965550,1748947866207,-6317.93736942,0.00023695,2]
[363965551,1748947866217,-151.0,0.000237,7]
[363965552,1748947866227,-151.0,0.000237,7]
[363965553,1748947866237,-151.0,0.000237,7]
[363965554,1748947866247,-516.610148,0.000237,7]
[363965555,1748947866257,-962.0,0.000237,2]
[363965556,1748947866267,-709.0,0.000237,2]
[363965557,1748947866277,-2225.0,0.000237,2]
[363965558,1748947866287,-917.81,0.00023703,7]
[363965559,1748947866297,-159.79694846,0.00023781,2]
[363965560,1748947866306,-151.0,0.00023795,7]
[363965561,1748947866316,-2379.76293757,0.00023797,9]
[363965562,1748947866326,-127562.61323541,0.000238,2]
[363965563,1748947866337,-1479448.52661303,0.000238,2]
[363965564,1748947866347,-1500.0,0.000238,2]
[363965565,1748947866357,-1500.0,0.000238,2]
[363965566,1748947866367,-1500.0,0.000238,2]
[363965567,1748947866377,-1500.0,0.000238,2]
[363965568,1748947866388,-1500.0,0.000238,2]
[363965569,1748947866398,-1500.0,0.000238,2]
[363965570,1748947866408,-1500.0,0.000238,2]
[363965571,1748947866418,-1500.0,0.000238,2]
[363965572,1748947866428,-1809.3,0.000238,2]
[363965573,1748947866438,-1500.0,0.000238,2]